{"text_format":"1","workbook":"xlsx","n_sheets":1,"sheets":["Podiumprogramma"],"not_rendered":{"charts":0,"images":3,"macros":1,"external_links":0,"defined_names":7,"comments":0,"pivot_tables":0},"unopened":[],"bounds":{"document_bytes":16777216,"sheet_cells":100000,"rows_first":2000,"rows_last":500,"rows_between":2000,"halvings":0,"cell_chars":16384,"cell_head_chars":4096},"cells_cut":0,"cells_raw":0,"read":"whole","date_system":"1900"}

{"sheet":"Podiumprogramma","index":0,"n_rows":27,"n_cols":13,"rows_kept":27,"cut":false,"hidden":false,"merged":[[5,2,5,4],[2,3,2,4],[3,3,3,4],[2,8,2,9],[23,2,23,3]]}
[]
[]
[null,null,"Naam:",null,null,null,null,null,"artiesten"]
[null,null,"Klas:",null,null,null,null,null,"►","Anouk",900,{"$f":"COUNTIF($D$9:$E$22,J4)","v":0},{"$f":"K4*L4","v":0}]
[null,null,null,null,null,null,null,null,"►","Dotan",600,{"$f":"COUNTIF($D$9:$E$22,J5)","v":0},{"$f":"K5*L5","v":0}]
[null,null,"Wanneer speelt welke artiest?",null,null,null,null,null,"►","Douwe Bob",760,0,0]
[null,null,null,null,null,null,null,null,"►","Ilse DeLange",950,0,0]
[null,null,"tijdstip","optredens op veld 1","optredens op veld 2",null,null,null,"►","Sea side jazz band",220,0,0]
[null,null,"10.00 tot 10.45 uur",null,"pauze",null,null,null,"►","Kensington",750,0,0]
[null,null,"11.00 tot 11.45 uur",null,"pauze",null,null,null,"►","Grooves",130,0,0]
[null,null,"12.00 tot 12.45 uur",null,null,null,null,null,"►","Klittuband",210,0,0]
[null,null,"13.00 tot 13.45 uur","pauze",null,null,null,null,"►","La Pegatina",125,0,0]
[null,null,"14.00 tot 14.45 uur",null,null,null,null,null,"►","Marike Jager",400,0,0]
[null,null,"15.00 tot 15.45 uur","pauze",null,null,null,null,"►","Birdie Num Num",780,0,0]
[null,null,"16.00 tot 16.45 uur",null,null,null,null,null,"►","Moke",625,0,0]
[null,null,"17.00 tot 17.45 uur",null,"pauze",null,null,null,"►","Nielson",610,0,0]
[null,null,"18.00 tot 18.45 uur","pauze",null,null,null,null,"►","Crossfire",320,0,0]
[null,null,"19.00 tot 19.45 uur",null,null,null,null,null,"►","Orange Skyline",200,0,0]
[null,null,"20.00 tot 20.45 uur",null,null,null,null,null,"►","Racoon",800,0,0]
[null,null,"21.00 tot 21.45 uur","pauze",null,null,null,null,"►","Roel van Velzen",995,0,0]
[null,null,"22.00 tot 22.45 uur",null,"pauze",null,null,null,"►","More fire",140,0,0]
[null,null,"23.00 tot 23.45 uur",null,"pauze",null,null,null,"►","Los Elegidos",300,0,0]
[null,null,null,null,null,null,null,null,"►","Hillybilly Moonshiners",100,0,0]
[null,null,"totale kosten van de vergoedingen:",null,{"$f":"SUM(M4:M25)","v":0},null,null,null,"►","Typhoon",510,0,0]
[null,null,null,null,null,null,null,null,"►","Waylon",700,0,0]
[]
[null,null,null,null,null,null,null,null,"►","cellen wissen"]